bitfinex-derivatives/quotes_BNBF0:USTF0_20251225
["timestamp","ask_amount","ask_price","bid_price","bid_amount"]
[1766704747598,1.053,838.43,837.6,14.17881972]
[1766704748399,1.053,838.43,837.6,12.9892601]
[1766704750698,1.053,838.43,837.59,1.18955962]
[1766704751901,1.053,838.43,837.61,1.18955962]
[1766704754299,1.053,838.43,837.6,1.18955962]
[1766704756310,1.053,838.43,837.61,1.18955962]
[1766704757209,1.053,838.43,837.62,1.18955962]
[1766704758406,1.053,838.43,837.62,14.10317564]
[1766704759306,1.053,838.43,837.63,1.18955962]
[1766704761414,1.053,838.43,837.64,1.18955962]
[1766704762313,1.053,838.43,837.97,1.18955962]
[1766704762515,1.053,838.43,837.99,1.18955962]
[1766704763113,1.053,838.43,838.15,0.89266306]
[1766704763314,1.053,838.43,838.11,0.89266306]
[1766704763514,1.053,838.43,838.12,0.89266306]
[1766704764312,1.053,838.43,838.1,0.89266306]
[1766704765514,1.053,838.43,838.08,0.89266306]
[1766704766315,1.053,838.43,838.07,0.89266306]
[1766704767009,1.053,838.43,838.02,0.89266306]
[1766704767212,1.053,838.43,837.97,0.89266306]
[1766704767515,1.053,838.43,837.96,0.89266306]
[1766704769414,1.053,838.43,837.95,0.89266306]
[1766704771313,1.053,838.43,837.94,0.89266306]
[1766704774318,1.053,838.43,837.93,0.89266306]
[1766704782829,1.053,838.43,837.89,0.89266306]
[1766704783534,1.053,838.43,837.9,0.89266306]
[1766704784035,1.053,838.43,837.9,14.12652218]
[1766704786536,1.053,838.43,837.91,0.89266306]
[1766704789234,1.053,838.43,837.92,0.89266306]
[1766704790335,1.053,838.43,837.93,0.89266306]
[1766704792336,1.053,838.43,837.94,0.89266306]
[1766704794041,0.20753941,838.95,837.94,0.89266306]
[1766704794435,0.20753941,838.95,837.95,0.89266306]
[1766704795342,1.0942842,838.95,837.95,13.63304683]
[1766704796344,1.0942842,838.95,837.96,0.89266306]
[1766704797042,1.142,838.94,837.96,0.89266306]
[1766704797444,2.02874479,838.94,837.96,0.89266306]
[1766704798348,2.02874479,838.94,837.97,0.89266306]
[1766704799350,0.88674479,838.93,837.97,0.89266306]
[1766704800349,0.88674479,838.93,837.98,0.89266306]
[1766704801246,0.88674479,838.92,837.98,0.89266306]
[1766704802346,0.88674479,838.91,837.99,0.89266306]
[1766704802846,0.88674479,838.91,837.99,14.07779386]
[1766704803347,0.88674479,838.9,838.0,0.89266306]
[1766704804449,0.88674479,838.89,838.01,0.89266306]
[1766704805553,0.88674479,838.88,838.02,0.89266306]
[1766704806350,1.142,838.94,837.99,13.1851308]
[1766704806351,0.88674479,838.87,838.03,0.89266306]
[1766704806951,0.88674479,838.86,838.02,0.89266306]
[1766704807155,0.88674479,838.85,838.01,0.89266306]
[1766704807355,0.88674479,838.83,838.02,0.89266306]
[1766704808365,0.88674479,838.83,838.03,0.89266306]
[1766704809452,0.88674479,838.82,838.03,0.89266306]
[1766704810357,0.88674479,838.81,838.04,0.89266306]
[1766704811355,0.88674479,838.81,838.05,0.89266306]
[1766704813160,0.88674479,838.81,838.04,0.89266306]
[1766704813359,0.88674479,838.81,838.05,0.89266306]
[1766704814161,0.88674479,838.81,838.04,0.89266306]
[1766704814461,0.88674479,838.81,838.05,0.89266306]
[1766704815162,0.88674479,838.81,838.04,0.89266306]
[1766704815360,0.88674479,838.81,838.05,0.89266306]
[1766704815663,0.88674479,838.8,837.88,1.18955962]
[1766704817362,0.88674479,838.8,837.89,1.18955962]
[1766704818159,0.88674479,838.8,837.88,1.18955962]
[1766704818458,0.88674479,838.8,837.89,1.18955962]
[1766704819561,0.88674479,838.8,837.89,14.10780523]
[1766704820660,0.88674479,838.76,837.89,12.91824561]
[1766704820865,0.88674479,838.74,837.89,12.91824561]
[1766704821764,0.88674479,838.68,837.89,12.91824561]
[1766704822165,0.88674479,838.69,837.89,12.91824561]
[1766704822962,0.88674479,838.69,837.76,1.18955962]
[1766704823159,0.88674479,838.69,837.04,0.0136508]
[1766704823160,0.88674479,838.7,837.75,1.18955962]
[1766704823358,1.142,838.94,837.0,2.97389906]
[1766704823359,0.88674479,838.62,837.69,1.18955962]
[1766704823567,0.88674479,838.6,837.65,1.18955962]
[1766704824164,0.88674479,838.61,837.63,1.18955962]
[1766704825360,0.88674479,838.62,837.62,1.18955962]
[1766704826062,0.88674479,838.55,837.54,1.18955962]
[1766704826262,0.88674479,838.56,837.52,1.18955962]
[1766704827166,0.88674479,838.58,837.51,1.18955962]
[1766704827961,0.88674479,838.54,837.47,1.18955962]
[1766704828260,0.88674479,838.56,837.45,1.18955962]
[1766704829164,0.88674479,838.57,837.44,1.18955962]
[1766704830264,0.88674479,838.58,837.43,1.18955962]
[1766704831165,0.88674479,838.59,837.42,1.18955962]
[1766704832269,0.88674479,838.6,837.41,1.18955962]
[1766704833370,0.88674479,838.6,837.26,1.78433944]
[1766704833371,0.88674479,838.61,837.4,1.18955962]
[1766704835167,0.998,838.6,837.39,1.18955962]
[1766704836972,0.88674479,838.59,837.35,1.18955962]
[1766704837374,0.88674479,838.59,837.34,1.18955962]
[1766704838176,1.88474479,838.6,837.34,1.18955962]
[1766704839374,1.88474479,838.6,837.33,1.18955962]
[1766704840380,0.998,838.6,837.33,1.18955962]
[1766704840680,0.88674479,838.52,837.24,1.18955962]
[1766704841176,0.88674479,838.53,837.23,1.18955962]
[1766704842180,0.88674479,838.52,837.22,1.18955962]
[1766704843178,0.88674479,838.53,837.21,1.18955962]
[1766704844676,0.88674479,838.39,837.06,1.18955962]
[1766704844878,0.88674479,838.35,837.02,1.18955962]
[1766704845181,0.88674479,838.36,837.01,1.18955962]
[1766704845477,0.88674479,838.29,836.94,54.97063932]
[1766704845778,0.88674479,838.27,836.94,54.97063932]
[1766704845979,0.88674479,838.25,836.94,54.97063932]
[1766704846282,0.88674479,838.27,836.87,1.18955962]
[1766704847180,0.88674479,838.29,836.86,1.18955962]
[1766704847383,0.998,838.6,836.79,1.18955962]
[1766704847384,0.88674479,838.22,836.79,1.18955962]
[1766704847784,0.88674479,838.22,836.64,1.78433944]
[1766704847785,0.88674479,838.1,836.67,1.18955962]
[1766704848084,0.88674479,838.11,836.67,1.18955962]
[1766704848284,0.88674479,838.13,836.64,1.18955962]
[1766704849280,0.88674479,838.14,836.61,1.18955962]
[1766704850083,0.88674479,838.23,836.7,1.18955962]
[1766704850383,0.88674479,838.24,836.7,12.97776944]
[1766704851183,0.88674479,838.25,836.7,12.97776944]
[1766704851381,0.88674479,838.24,836.7,12.97776944]
[1766704852180,0.88674479,838.25,836.7,12.97776944]
[1766704853182,0.88674479,838.26,836.7,12.97776944]
[1766704853585,0.88674479,838.26,836.64,1.18955962]
[1766704854285,0.88674479,838.26,836.63,1.18955962]
[1766704855182,0.88674479,838.26,836.62,1.18955962]
[1766704856286,0.88674479,838.27,836.61,1.18955962]
[1766704858288,0.88674479,838.26,836.61,1.18955962]
[1766704858486,0.88674479,838.27,836.61,1.18955962]
[1766704860188,0.88674479,838.26,836.62,1.18955962]
[1766704861193,0.88674479,838.26,836.63,1.18955962]
[1766704861392,0.88674479,838.31,836.68,1.18955962]
[1766704861694,0.88674479,838.3,836.66,1.18955962]
[1766704862197,0.88674479,838.29,836.67,1.18955962]
[1766704862396,0.88674479,838.29,836.67,14.38132765]
[1766704863199,0.88674479,838.29,836.68,1.18955962]
[1766704864200,0.88674479,838.28,836.69,1.18955962]
[1766704864500,0.88674479,838.27,836.69,1.18955962]
[1766704864800,0.88674479,838.28,836.7,1.18955962]
[1766704865200,0.88674479,838.27,836.71,1.18955962]
[1766704866206,0.88674479,838.26,836.72,1.18955962]
[1766704867000,0.88674479,838.3,836.76,1.18955962]
[1766704867212,0.88674479,838.35,836.82,1.18955962]
[1766704867402,0.88674479,838.35,836.83,1.18955962]
[1766704868399,0.88674479,838.33,836.84,1.18955962]
[1766704868603,0.88674479,838.32,836.83,1.18955962]
[1766704869399,0.88674479,838.31,836.84,1.18955962]
[1766704870400,0.88674479,838.31,836.85,1.18955962]
[1766704871505,0.88674479,838.3,836.86,1.18955962]
[1766704873106,0.88674479,838.3,836.87,1.18955962]
[1766704873505,0.88674479,838.29,836.87,1.18955962]
[1766704874204,0.88674479,838.29,836.88,1.18955962]
[1766704874506,1.398,838.28,836.88,14.44214759]
[1766704875208,1.398,838.28,836.89,1.18955962]
[1766704875408,2.28474479,838.28,836.89,1.18955962]
[1766704875708,1.398,838.28,836.9,1.18955962]
[1766704876205,1.398,838.28,836.91,1.18955962]
[1766704877109,2.28474479,838.28,836.92,1.18955962]
[1766704878309,0.88674479,838.27,836.93,1.18955962]
[1766704879107,0.88674479,838.27,836.95,1.18955962]
[1766704880203,0.88674479,838.26,836.96,1.18955962]
[1766704881310,0.88674479,838.25,836.98,1.18955962]
[1766704882210,0.88674479,838.24,836.99,1.18955962]
[1766704882409,0.88674479,838.24,837.0,1.18955962]
[1766704883112,1.398,838.28,837.01,1.18955962]
[1766704883113,0.88674479,838.23,837.01,1.18955962]
[1766704884209,0.88674479,838.22,837.02,1.18955962]
[1766704884414,0.88674479,838.22,837.03,1.18955962]
[1766704885015,0.88674479,838.21,837.03,1.18955962]
[1766704885211,0.88674479,838.2,837.04,1.18955962]
[1766704885915,0.88674479,838.2,837.04,14.41963886]
[1766704886114,0.88674479,838.19,837.05,1.18955962]
[1766704887316,0.88674479,838.17,837.07,1.18955962]
[1766704888111,0.88674479,838.16,837.08,1.18955962]
[1766704889313,0.88674479,838.14,837.1,1.18955962]
[1766704894319,0.88674479,838.13,837.11,1.18955962]
[1766704894724,0.88674479,838.13,837.11,14.13012049]
[1766704897325,2.57279375,838.28,837.12,1.18955962]
[1766704897326,0.88674479,838.12,837.12,1.18955962]
[1766704900323,0.88674479,838.11,837.13,1.18955962]
[1766704902328,0.88674479,838.08,837.11,1.18955962]
[1766704903228,0.88674479,838.08,837.12,1.18955962]
[1766704903523,0.88674479,838.08,837.12,14.38673093]
[1766704903733,0.88674479,837.98,837.12,13.19717131]
[1766704903926,0.88674479,837.96,837.12,13.19717131]
[1766704904126,0.88674479,837.95,837.12,13.19717131]
[1766704904326,0.88674479,837.96,837.12,13.19717131]
[1766704904927,0.88674479,838.01,837.19,0.8947986]
[1766704905225,0.88674479,837.94,837.12,13.19717131]
[1766704905423,0.88674479,837.92,837.12,13.19717131]
[1766704906331,0.88674479,837.93,837.12,13.19717131]
[1766704906831,0.88674479,837.93,837.07,0.8947986]
[1766704907332,0.88674479,837.94,837.06,0.8947986]
[1766704908226,0.88674479,837.95,837.05,0.8947986]
[1766704909333,1.236,837.94,837.04,0.8947986]
[1766704910433,1.236,837.94,837.03,0.8947986]
[1766704911339,1.236,837.94,837.02,0.8947986]
[1766704913237,1.236,837.94,837.01,0.8947986]
[1766704915344,1.236,837.94,837.0,0.8947986]
[1766704916642,1.236,837.94,836.97,0.8947986]
[1766704916841,0.88674479,837.92,836.92,0.8947986]
[1766704917244,0.88674479,837.93,836.92,0.8947986]
[1766704918342,2.12274479,837.94,836.91,0.8947986]
[1766704919441,2.12274479,837.94,836.9,0.8947986]
[1766704921545,1.236,837.94,836.9,0.8947986]
[1766704921840,1.236,837.94,836.96,0.8947986]
[1766704924445,1.236,837.94,836.95,0.8947986]
[1766704925446,1.236,837.94,836.94,0.8947986]
[1766704925650,1.236,837.94,836.9,0.8947986]
[1766704928354,1.236,837.94,836.89,0.8947986]
[1766704929151,0.88674479,837.93,836.86,0.8947986]
[1766704930451,2.12274479,837.94,836.86,0.8947986]
[1766704934256,0.88674479,837.93,836.86,0.8947986]
[1766704937363,0.88674479,837.93,836.87,0.8947986]
[1766704938161,0.88674479,837.89,836.83,0.8947986]
[1766704938464,0.88674479,837.89,836.84,0.8947986]
[1766704939262,0.88674479,837.88,836.84,0.8947986]
[1766704941468,0.88674479,837.87,836.85,0.8947986]
[1766704942269,0.88674479,837.87,836.86,0.8947986]
[1766704943369,0.88674479,837.86,836.86,0.8947986]
[1766704944375,0.88674479,837.85,836.87,0.8947986]
[1766704945366,0.88674479,837.84,836.88,0.8947986]
[1766704946372,0.88674479,837.83,836.9,0.8947986]
[1766704947270,0.88674479,837.81,836.91,0.8947986]
[1766704948469,0.88674479,837.8,836.93,0.8947986]
[1766704949367,0.88674479,837.79,836.93,0.8947986]
[1766704950273,0.88674479,837.79,836.94,0.8947986]
[1766704950472,0.88674479,837.79,836.93,0.8947986]
[1766704950674,0.88674479,837.71,836.86,0.8947986]
[1766704950869,0.88674479,837.71,836.82,12.84864053]
[1766704950870,0.88674479,837.7,836.84,0.8947986]
[1766704951776,0.88674479,837.63,836.82,12.84864053]
[1766704952575,0.88674479,837.64,836.82,12.84864053]
[1766704953273,0.88674479,837.64,836.75,0.8947986]
[1766704953474,2.99819063,837.94,836.75,0.8947986]
[1766704953475,0.88674479,837.65,836.75,0.8947986]
[1766704954475,0.88674479,837.65,836.74,0.8947986]
[1766704955085,0.88674479,837.57,836.66,0.8947986]
[1766704955475,0.88674479,837.58,836.65,0.8947986]
[1766704955975,0.88674479,837.6,836.66,0.8947986]
[1766704956378,0.88674479,837.6,836.65,0.8947986]
[1766704957477,0.88674479,837.61,836.64,0.8947986]
[1766704958374,0.88674479,837.62,836.64,0.8947986]
[1766704959578,0.88674479,837.62,836.63,0.8947986]
[1766704960382,0.88674479,837.63,836.63,0.8947986]
[1766704961283,0.88674479,837.62,836.63,0.8947986]
[1766704961484,0.88674479,837.63,836.63,0.8947986]
[1766704962382,0.88674479,837.63,836.62,0.8947986]
[1766704962884,0.20784061,837.43,836.62,0.8947986]
[1766704964380,0.20784061,837.43,836.61,0.8947986]
[1766704965187,0.20784061,837.43,836.62,0.8947986]
[1766704965386,0.20784061,837.43,836.61,0.8947986]
[1766704967586,0.20784061,837.43,836.59,0.8947986]
[1766704971390,1.402,837.42,836.59,0.8947986]
[1766704979401,1.402,837.42,836.6,0.8947986]
[1766704981201,1.402,837.42,836.61,0.8947986]
[1766704981706,1.402,837.42,836.61,13.7685613]
[1766704982404,1.402,837.42,836.62,0.89286729]
[1766704984416,0.20784061,837.43,836.62,0.89286729]
[1766704985106,0.20784061,837.43,836.61,13.7685613]
[1766704985610,0.20784061,837.43,836.62,0.89286729]
[1766704988309,0.88439897,837.64,836.69,0.89286729]
[1766704988516,0.20782944,837.54,836.69,9.90187755]
[1766704988710,1.357,837.42,836.69,9.90187755]
[1766704989915,1.357,837.42,836.7,0.89286729]
[1766704990212,1.357,837.42,836.76,0.89286729]
[1766704990414,1.357,837.42,836.77,0.89286729]
[1766704992415,1.357,837.42,836.78,0.89286729]
[1766704993114,1.357,837.42,836.79,0.89286729]
[1766704993312,1.357,837.42,836.8,0.89286729]
[1766704993914,1.357,837.42,836.83,0.89286729]
[1766704994516,1.357,837.42,836.84,0.89286729]
[1766704995616,1.357,837.42,836.91,0.89286729]
[1766704996218,1.357,837.42,836.9,0.89286729]
[1766704998325,1.357,837.42,836.89,0.89415015]
[1766704998521,1.357,837.42,836.89,9.90990867]
[1766704999324,1.357,837.42,836.89,9.01575852]
[1766705000525,1.357,837.42,836.89,9.90990867]
[1766705001324,1.357,837.42,836.89,9.01575852]
[1766705002526,1.357,837.42,836.88,0.89415015]
[1766705003229,1.357,837.42,836.87,0.89415015]
[1766705003529,1.357,837.42,836.92,0.89415015]
[1766705003829,1.357,837.42,836.93,0.89415015]
[1766705004630,1.357,837.42,836.92,0.89415015]
[1766705006326,1.357,837.42,836.91,0.89415015]
[1766705008130,1.357,837.42,836.6,1.78433944]
[1766705008131,1.357,837.42,836.9,0.89415015]
[1766705010428,1.357,837.42,836.89,0.89415015]
[1766705011834,1.357,837.42,836.87,0.89415015]
[1766705012238,1.357,837.42,836.57,1.78433944]
[1766705012239,1.357,837.42,836.85,0.89415015]
[1766705012538,1.357,837.42,836.84,0.89415015]
[1766705018435,1.357,837.42,836.85,0.89415015]
[1766705018738,0.20779345,837.79,836.85,0.89415015]
[1766705022135,0.20779345,837.79,836.83,0.89415015]
[1766705022337,0.20779345,837.79,836.82,0.89415015]
[1766705022736,1.165,837.78,836.82,0.89415015]
[1766705024139,1.165,837.78,836.83,0.89415015]
[1766705024837,1.165,837.78,836.83,9.94668572]
[1766705026243,0.88615643,837.75,836.83,9.05253557]
[1766705028242,0.88615643,837.74,836.8,0.89415015]
[1766705029248,0.88615643,837.74,836.81,0.89415015]
[1766705030245,1.165,837.78,836.82,0.89415015]
[1766705030246,0.88615643,837.73,836.82,0.89415015]
[1766705031144,0.88615643,837.72,836.82,0.89415015]
[1766705032146,1.165,837.78,836.83,0.89415015]
[1766705032147,0.88615643,837.71,836.83,0.89415015]
[1766705032850,0.88615643,837.71,836.83,9.92526209]
[1766705033145,0.88615643,837.7,836.84,0.89415015]
[1766705034148,0.88615643,837.7,836.85,0.89415015]
[1766705036149,0.88615643,837.65,836.81,0.89415015]
[1766705036849,0.88615643,837.64,836.8,0.89415015]
[1766705037848,1.347,837.63,836.8,0.89415015]
[1766705041152,1.347,837.63,836.79,0.89415015]
[1766705042356,1.347,837.63,836.78,0.89415015]
[1766705043456,0.88615643,837.62,836.75,0.89415015]
[1766705044860,0.88615643,837.61,836.73,0.89415015]
[1766705046359,0.88615643,837.62,836.72,0.89415015]
[1766705049359,0.88615643,837.62,836.71,0.89415015]
[1766705051159,0.88615643,837.62,836.72,0.89415015]
[1766705051360,0.88615643,837.62,836.71,0.89415015]
[1766705051961,0.967,837.61,836.71,0.89415015]
[1766705052165,0.967,837.61,836.72,0.89415015]
[1766705052464,0.967,837.61,836.71,0.89415015]
[1766705053260,0.967,837.61,836.72,0.89415015]
[1766705054364,0.967,837.61,836.72,9.99920287]
[1766705058568,0.967,837.61,836.72,0.89415015]
[1766705059168,1.85315643,837.61,836.72,0.89415015]
[1766705060168,1.85315643,837.61,836.73,0.89415015]
[1766705062364,0.967,837.61,836.74,0.89415015]
[1766705063569,0.967,837.61,836.74,9.70006605]
[1766705064169,0.967,837.61,836.75,0.89415015]
[1766705065167,1.85315643,837.61,836.75,0.89415015]
[1766705066470,1.85315643,837.61,836.76,0.89415015]
[1766705067673,1.85315643,837.61,836.77,0.89415015]
[1766705067674,0.967,837.61,836.77,0.89415015]
[1766705068472,1.85315643,837.61,836.77,0.89415015]
[1766705069168,1.85315643,837.61,836.78,0.89415015]
[1766705070273,0.967,837.61,836.85,0.89415015]
[1766705071372,0.967,837.61,836.86,0.89415015]
[1766705071572,0.967,837.61,836.88,0.89415015]
[1766705071969,0.967,837.61,836.95,0.89415015]
[1766705072373,0.967,837.61,836.94,0.89415015]
[1766705073274,0.967,837.61,836.93,0.89415015]
[1766705074674,0.967,837.61,836.97,0.89415015]
[1766705076275,0.967,837.61,836.96,0.89415015]
[1766705077371,0.967,837.61,836.95,0.89415015]
[1766705079274,0.967,837.61,836.94,0.89415015]
[1766705081378,0.967,837.61,836.93,0.89415015]
[1766705083273,0.967,837.61,836.92,0.89415015]
[1766705086080,0.967,837.61,836.98,0.89415015]
[1766705086277,0.967,837.61,836.98,8.8930464]
[1766705087879,0.967,837.61,836.99,0.89415015]
[1766705088282,0.967,837.61,836.98,9.78719655]
[1766705089782,0.967,837.61,836.98,0.89415015]
[1766705090278,0.967,837.61,836.97,0.89415015]
[1766705094283,0.967,837.61,836.96,0.89415015]
[1766705094488,0.967,837.61,836.97,0.89415015]
[1766705094789,0.967,837.61,837.03,0.89415015]
[1766705095189,0.967,837.61,837.02,0.89415015]
[1766705097889,0.967,837.61,837.04,0.89415015]
[1766705100993,0.967,837.61,837.05,0.89415015]
[1766705101396,0.967,837.61,837.04,0.89415015]
[1766705102200,0.967,837.61,837.05,0.89415015]
[1766705102402,0.967,837.61,837.04,0.89415015]
[1766705105103,0.20775189,837.98,837.04,0.89415015]
[1766705105297,0.20775189,837.98,837.05,0.89415015]
[1766705106503,0.20775189,837.98,837.08,0.89415015]
[1766705106798,0.88615643,838.17,837.11,0.89415015]
[1766705107098,0.20770601,838.03,837.11,0.89415015]
[1766705107302,0.88615643,838.16,837.11,0.89415015]
[1766705107502,0.20770229,838.03,837.11,0.89415015]
[1766705108601,1.5,838.02,837.11,0.89415015]
[1766705108802,1.5,838.02,837.15,0.89415015]
[1766705112200,1.5,838.02,837.16,0.89415015]
[1766705113903,1.5,838.02,837.18,0.89415015]
[1766705114811,1.5,838.02,837.18,9.75090999]
[1766705115212,1.5,838.02,837.18,8.85675984]
[1766705115511,1.5,838.02,837.18,9.75090999]
[1766705118310,1.5,838.02,837.19,0.89415015]
[1766705125316,1.5,838.02,837.2,0.89415015]
[1766705128414,1.5,838.02,837.21,0.89415015]
[1766705130313,1.5,838.02,837.22,0.89415015]
[1766705132313,1.5,838.02,837.23,0.89415015]
[1766705132517,1.5,838.02,837.23,9.98239741]
[1766705135218,1.5,838.02,837.24,0.89415015]
[1766705137516,1.5,838.02,837.25,0.89415015]
[1766705139320,1.5,838.02,837.26,0.89415015]
[1766705140418,1.5,838.02,837.26,9.76639266]
[1766705141520,1.5,838.02,837.27,0.89415015]
[1766705144322,1.5,838.02,837.28,0.89415015]
[1766705146331,1.5,838.02,837.35,0.89415015]
[1766705146631,1.5,838.02,837.34,0.89415015]
[1766705147230,1.5,838.02,837.33,0.89415015]
[1766705147428,1.5,838.02,837.34,0.89415015]
[1766705147931,1.5,838.02,837.31,9.72971422]
[1766705148332,1.5,838.02,837.32,0.89415015]
[1766705150232,1.5,838.02,837.33,0.89415015]
[1766705152330,1.5,838.02,837.34,0.89415015]
[1766705155431,0.20769981,838.07,837.34,0.89415015]
[1766705158643,1.298,838.06,837.39,0.89415015]
[1766705160138,1.298,838.06,837.4,0.89415015]
[1766705160742,1.298,838.06,837.43,0.89415015]
[1766705161342,1.298,838.06,837.49,0.89415015]
[1766705161744,1.298,838.06,837.5,0.89415015]
[1766705162347,1.298,838.06,837.48,0.89415015]
[1766705162544,1.298,838.06,837.47,0.89415015]
[1766705163344,1.298,838.06,837.46,0.89415015]
[1766705165448,1.298,838.06,837.45,0.89415015]
[1766705166544,1.298,838.06,837.44,0.89415015]
[1766705168446,1.298,838.06,837.43,0.89415015]
[1766705171547,1.298,838.06,837.42,0.89415015]
[1766705175555,1.298,838.06,837.41,0.89415015]
[1766705175953,1.298,838.06,837.42,0.89415015]
[1766705177656,1.298,838.06,837.41,0.89415015]
[1766705182358,1.298,838.06,837.35,0.89415015]
[1766705182557,1.298,838.06,837.33,0.89415015]
[1766705183359,1.298,838.06,837.34,0.89415015]
[1766705183559,1.298,838.06,837.19,1.18955962]
[1766705183760,1.298,838.06,837.34,0.89283875]
[1766705183963,1.298,838.06,837.34,9.81084308]
[1766705187365,1.298,838.06,837.35,0.89283875]
[1766705190468,1.298,838.06,837.36,0.89283875]
[1766705194471,1.298,838.06,837.37,0.89283875]
[1766705195372,1.298,838.06,837.37,9.80088505]
[1766705198272,1.298,838.06,837.38,0.89283875]
[1766705200174,1.298,838.06,837.39,0.89283875]
[1766705202481,1.298,838.06,837.24,1.18955962]
[1766705202482,1.298,838.06,837.4,0.89283875]
[1766705207488,1.298,838.06,837.31,0.89283875]
[1766705207889,1.298,838.06,837.28,0.89283875]
[1766705208089,0.88643277,838.04,837.24,0.89283875]
[1766705208286,0.88643277,838.05,837.23,0.89283875]
[1766705209491,2.18443277,838.06,837.22,0.89283875]
[1766705210392,1.298,838.06,837.21,0.89283875]
[1766705212294,1.298,838.06,837.2,0.89283875]
[1766705212791,0.88643277,838.08,837.2,0.89283875]
[1766705213492,0.88643277,838.09,837.2,0.89283875]
[1766705213996,0.88643277,838.06,837.17,0.89283875]
[1766705214394,0.88643277,838.06,837.16,0.89283875]
[1766705215397,0.88643277,838.07,837.16,0.89283875]
[1766705216394,0.88643277,838.07,837.15,0.89283875]
[1766705216597,1.276,838.06,837.15,0.89283875]
[1766705216795,0.88643277,838.0,837.08,0.89283875]
[1766705217398,0.88643277,838.0,837.07,0.89283875]
[1766705218499,0.88643277,838.01,837.06,0.89283875]
[1766705219594,0.88643277,838.02,837.06,0.89283875]
[1766705221400,0.88643277,838.02,837.05,0.89283875]
[1766705223496,0.88643277,838.03,837.05,0.89283875]
[1766705224400,0.88643277,838.02,837.03,0.89283875]
[1766705228203,1.276,838.06,837.03,0.89283875]
[1766705228204,0.88643277,838.03,837.03,0.89283875]
[1766705229309,0.88643277,838.03,837.02,0.89283875]
[1766705231712,1.17479375,838.18,836.87,1.18955962]
[1766705231917,0.88702961,838.03,837.02,0.89220138]
[1766705232216,0.88702961,838.03,837.02,10.02773535]
[1766705234219,1.396,838.02,837.02,10.02773535]
[1766705235522,1.396,838.02,837.02,0.89220138]
[1766705239225,2.28302961,838.02,837.02,0.89220138]
[1766705241325,2.28302961,838.02,837.03,0.89220138]
[1766705241829,2.28302961,838.02,837.03,9.89976556]
[1766705242328,0.88702961,838.01,837.03,9.89976556]
[1766705244526,0.88702961,838.01,837.04,0.89220138]
[1766705245428,0.88702961,838.0,837.04,0.89220138]
[1766705246429,0.88702961,837.99,837.05,0.89220138]
[1766705247331,0.88702961,837.99,837.06,0.89220138]
[1766705248531,0.88702961,837.98,837.06,0.89220138]
[1766705249431,0.88702961,837.97,837.07,0.89220138]
[1766705250430,0.88702961,837.96,837.08,0.89220138]
[1766705250631,1.396,838.02,836.6,54.1720917]
[1766705250632,0.88702961,837.99,837.12,0.89220138]
[1766705250831,0.88702961,837.99,837.12,9.82017956]
[1766705251028,0.88702961,838.0,837.13,0.89220138]
[1766705251432,0.88702961,837.99,837.14,0.89220138]
[1766705252430,0.88702961,837.96,837.15,0.89220138]
[1766705254436,0.88702961,837.95,837.15,0.89220138]
[1766705255138,0.88702961,837.97,837.17,0.89220138]
[1766705255437,0.88702961,837.97,836.96,54.60542799]
[1766705255438,1.396,838.02,837.27,9.88285275]
[1766705256434,1.396,838.02,837.38,0.89220138]
[1766705257239,1.396,838.02,837.35,0.89220138]
[1766705258440,1.396,838.02,837.34,0.89220138]
[1766705258640,1.396,838.02,837.36,0.89220138]
[1766705259242,1.396,838.02,837.35,0.89220138]
[1766705259944,1.396,838.02,837.37,0.89220138]
[1766705260245,1.396,838.02,837.42,0.89220138]
[1766705260444,1.396,838.02,837.42,10.0198367]
[1766705261341,1.396,838.02,837.42,9.12763532]
[1766705263644,1.396,838.02,837.38,0.89220138]
[1766705264349,1.396,838.02,837.37,0.89220138]
[1766705265246,1.396,838.02,837.36,0.89220138]
[1766705266046,1.396,838.02,837.37,0.89220138]
[1766705266248,1.396,838.02,837.36,0.89220138]
[1766705267252,1.396,838.02,837.35,0.89220138]
[1766705267552,1.396,838.02,837.34,0.89220138]
[1766705268453,1.396,838.02,837.33,0.89220138]
[1766705270352,1.396,838.02,837.32,0.89220138]
[1766705272553,1.396,838.02,837.17,0.89220138]
[1766705273254,1.396,838.02,837.18,0.89220138]
[1766705274054,1.396,838.02,837.18,9.69420993]
[1766705274549,0.20766573,838.23,837.18,9.69420993]
[1766705276757,1.09469534,838.23,837.18,8.80200855]
[1766705277451,1.09469534,838.23,837.14,0.89220138]